Cogmind - Beta 14 @@@ ROGUE MODE // 2025.03.23 @ 15:59:12 Player: Mercey Result: Destroyed by G-47 Trooper with Particle Gun Performance ------------- Evolutions (2) 1000 Regions Visited (3) 600 Robots Destroyed (42) 210 Value Destroyed (1024) 1024 Prototype IDs (0) 0 Alien Tech Used (0) 0 Bonus (0) 0 TOTAL SCORE: 2834 Bonus ------- None Cogmind --------- Core Integrity 0/550 Matter 70/300 Energy 100/100 System Corruption 0% Temperature Cool (33) Movement Treading (160) Location -8/Materials Parts ------- > --- POWER (2) -------- (None) > --- PROPULSION (3) --- Light Treads > --- UTILITY (4) ------ Large Storage Unit Visual Processing Unit Advanced Visual Processing Unit Signal Interpreter > --- WEAPON (2) ------- (None) > --- INVENTORY (15) --- Nuclear Core Light Treads Light Treads Light Treads Light Treads Thermal Generator Thermal Generator Improved Heat Sink High-capacity Matter Pod (0) ECM Suite Small Laser Peak State ------------ > --- POWER ------------ Light Nuclear Core > --- PROPULSION ------- Wheel Compact Wheel Compact Wheel > --- UTILITY ---------- Large Storage Unit Visual Processing Unit Advanced Visual Processing Unit Signal Interpreter > --- WEAPON ----------- Light Assault Rifle Assault Cannon > --- INVENTORY -------- Nuclear Core Light Treads Light Treads Light Treads Light Treads Thermal Generator Thermal Generator Improved Heat Sink High-capacity Matter Pod ECM Suite Small Laser Mini Grenade Launcher [Rating: 19] Favorites ----------- Power Ion Engine Engine Ion Engine Power Core Nuclear Core Propulsion Wheel Treads Light Treads Wheel Wheel Utility Visual Processing Unit Device ECM Suite Storage Large Storage Unit Processor Visual Processing Unit Weapon Light Cannon Energy Gun EM Pulse Gun Ballistic Gun Light Assault Rifle Ballistic Cannon Light Cannon Launcher Grenade Launcher Build | -11 -10 -9 -8 ------- Run | Yrd Mat Mat Mat Slots Evolved 4 | . . 2 2 Power 1 | . . . 1 Propulsion 1 | . . 1 . Utility 2 | . . 1 1 Weapon . | . . . . Parts Attached 37 | 9 8 11 9 Power 6 | 2 . 2 2 Engine 3 | 2 . 1 . Core 3 | . . 1 2 Reactor . | . . . . Propulsion 11 | 4 2 2 3 Treads 3 | 2 . . 1 Leg . | . . . . Wheel 8 | 2 2 2 2 Hover . | . . . . Flight . | . . . . Utility 8 | 1 4 2 1 Device 2 | . 2 . . Storage 3 | 1 1 1 . Processor 3 | . 1 1 1 Hackware . | . . . . Protection . | . . . . Artifact . | . . . . Weapon 12 | 2 2 5 3 Energy Gun 4 | 1 . 3 . Energy Cannon . | . . . . Ballistic Gun 3 | 1 . 1 1 Ballistic Cannon 3 | . 2 . 1 Launcher 2 | . . 1 1 Special Weapon . | . . . . Impact Weapon . | . . . . Slashing Weapon . | . . . . Piercing Weapon . | . . . . Special Melee Weapon . | . . . . Unidentified Prototypes . | . . . . Parts Lost 19 | . . 8 11 Power 4 | . . 1 3 Propulsion 6 | . . 2 4 Utility . | . . . . Weapon 9 | . . 5 4 Highest Loss Streak 8 | . . 8 6 To Critical Strikes 1 | . . . 1 Average Slot Usage (%) 88 | . 92 91 73 Engine 8 | . 14 5 3 Core 3 | . . 5 5 Wheel 24 | . 28 26 14 Storage 11 | . 14 11 9 Processor 15 | . 5 22 24 Energy Gun 7 | . 13 3 2 Ballistic Gun 4 | . 7 . 3 Ballistic Cannon 9 | . 7 13 4 Launcher 2 | . . 3 5 Peak Build Rating 19 | 6 9 14 19 Average Rating 10 | 5 7 11 14 On Entrance 6 | . 6 9 11 Naked Turns . | . . . . Heaviest Build 40 | 13 31 33 40 Greatest Support 42 | 26 26 36 42 Greatest Overweight (x) 6 | 2 1 1 6 Average Overweight (x) . | . . . 1 Largest Inventory Capacity 15 | 8 15 15 15 Average Capacity 12 | 7 9 15 15 Most Carried 15 | 4 15 15 12 Average Carried 9 | 2 6 13 11 Final Capacity 15 | 8 15 15 15 Final Carried 15 | 4 15 12 11 Class Distribution -------------------- 82% | Mutant 17% | Scavenger-Mutant Dominant Class ---------------- Mutant | -10/Materials Mutant | -9/Materials Mutant | -8/Materials Resources | -11 -10 -9 -8 ----------- Run | Yrd Mat Mat Mat Matter Collected 829 | 236 107 301 185 Remotely . | . . . . Salvage Created 935 | . 150 251 534 Parts 54 | . 7 20 27 Haulers Intercepted 1 | . . . 1 Recyclers Shooed 1 | . . . 1 Parts Field Recycled . | . . . . Retrieved Matter . | . . . . Parts Self-Destructed . | . . . . Prevented . | . . . . Kills | -11 -10 -9 -8 ------- Run | Yrd Mat Mat Mat Combat Hostiles Destroyed 27 | . 5 14 8 Guns 4 | . 1 3 . Cannons 9 | . 1 5 3 AOE 14 | . 3 6 5 Classes Destroyed 9 | . 4 2 3 Worker 1 | . . 1 . Builder 8 | . 1 . 7 Hauler 1 | . . . 1 Recycler 4 | . . . 4 Watcher 1 | . 1 . . Swarmer 9 | . 3 6 . Grunt 15 | . 2 6 7 Sentry 2 | . . 2 . Hunter 1 | . . . 1 Best Kill Streak 10 | . 4 8 10 Combat Bots Only 7 | . 3 7 3 Max Kills in Single Turn 3 | . 2 2 3 Gunslinging . | . . . . Exploded 2 | . 2 2 1 Melee . | . . . . Uniques/NPCs Destroyed . | . . . . Combat | -11 -10 -9 -8 -------- Run | Yrd Mat Mat Mat Hostile Shots Fired 223 | . 14 114 95 Missed 49 | . 3 24 22 Damage Taken 2463 | . 186 1008 1269 Core 895 | . 90 247 558 Absorbed by Shields . | . . . . Core Remaining (%) 67 | 100 64 38 . Volleys Fired 91 | . 12 37 42 Largest 2 | . 2 2 2 Hottest 85 | . 75 85 74 Shots Fired 155 | . 24 62 69 Gun 59 | . 18 18 23 Cannon 70 | . 6 40 24 Launcher 26 | . . 4 22 Special . | . . . . Kinetic 101 | . 12 43 46 Thermal 16 | . . 15 1 Explosive 26 | . . 4 22 Electromagnetic 12 | . 12 . . Robot Hit Streak 14 | . 11 14 7 Robot Miss Streak 3 | . 3 2 2 Penetration Max . | . . . . Secondary Targets . | . . . . Shots Hit Robots 105 | . 18 45 42 Core Hits 78 | . 10 20 48 Critical Kills . | . . . . Critical Parts Destroyed . | . . . . Critical Strikes 6 | . . 4 2 Burn 2 | . . 2 . Blast 4 | . . 2 2 Melee Attacks . | . . . . Impact . | . . . . Slashing . | . . . . Piercing . | . . . . Sneak Attacks . | . . . . Combat Hostiles . | . . . . Follow-up Attacks . | . . . . Damage Inflicted 3322 | . 455 1091 1776 Guns 450 | . 161 151 138 Cannons 985 | . 100 567 318 Explosions 1871 | . 187 364 1320 Melee . | . . . . Ramming 16 | . 7 9 . Kinetic 1187 | . 125 606 456 Thermal 299 | . 187 112 . Explosive 1684 | . . 364 1320 Electromagnetic 136 | . 136 . . Impact . | . . . . Slashing . | . . . . Piercing . | . . . . Highest Corruption . | . . . . Average Corruption . | . . . . Corruption Purged . | . . . . Corruption Blocked . | . . . . Overload Shots . | . . . . Overflow Damage 45 | . 31 14 . Projectiles 14 | . . 14 . Explosions 31 | . 31 . . Melee . | . . . . Knockbacks 6 | . 3 2 1 Impact . | . . . . Kinetic 5 | . 2 2 1 Secondary 1 | . 1 . . Self-Inflicted Damage 190 | . 61 59 70 Shots 7 | . 2 3 2 Rammed 5 | . 3 2 . Targets Rammed 5 | . 3 2 . Kicked . | . . . . Crushed . | . . . . Highest Temperature 253 | . 108 253 179 Average Temperature 74 | . 34 103 58 Received Heat Transfer 849 | . 36 264 549 Siege Activations . | . . . . Robots Corrupted . | . . . . Combat Hostiles . | . . . . Parts Fried . | . . . . Impact Corruptions . | . . . . Robots Melted . | . . . . Combat Hostiles . | . . . . Parts Melted . | . . . . Heat Transferred 719 | . 250 469 . Parts Sabotaged . | . . . . Parts Stolen . | . . . . Parts Stripped . | . . . . Power Chain Reactions 3 | . 3 . . Alert | -11 -10 -9 -8 ------- Run | Yrd Mat Mat Mat Peak Influence 308 | . 227 247 308 Initial 19 | . . 11 19 Average 84 | . 79 85 108 Maximum Alert Level 1 | . 1 1 1 Low Security (%) 91 | 100 96 87 85 Level 1 8 | . 3 12 14 Level 2 . | . . . . Level 3 . | . . . . Level 4 . | . . . . Level 5 . | . . . . High Security . | . . . . Max Security . | . . . . Squads Dispatched 3 | . . 2 1 Investigation 1 | . . 1 . Extermination . | . . . . Reinforcement 2 | . . 1 1 Assault . | . . . . Garrison . | . . . . Intercept . | . . . . Searches Triggered . | . . . . Construction Impeded 1 | . . . 1 Haulers Reinforced . | . . . . Active Scanning Responses . | . . . . Cargo Convoy Interrupts . | . . . . Stealth | -11 -10 -9 -8 --------- Run | Yrd Mat Mat Mat Distress Signals 4 | . 1 3 . Communications Jammed . | . . . . Distress Signals . | . . . . Times Spotted 46 | . 11 22 13 Peak Tracking Total 6 | . 5 6 5 Tactical Retreats 3 | . 1 2 . Traps | -11 -10 -9 -8 ------- Run | Yrd Mat Mat Mat Traps Triggered . | . . . . Indirectly . | . . . . Trap Hack Attempts . | . . . . Triggered . | . . . . Disarmed 3 | . 3 . . Reprogrammed . | . . . . Reused . | . . . . Traps Extracted . | . . . . Installed . | . . . . Triggered . | . . . . Machines | -11 -10 -9 -8 ---------- Run | Yrd Mat Mat Mat Machines Disabled 6 | . 1 . 5 Max in Single Turn 2 | . 1 . 2 Machines Repaired . | . . . . Machines Dismantled . | . . . . Machines Sabotaged . | . . . . Overloaded Fab Kills . | . . . . Hacking | -11 -10 -9 -8 --------- Run | Yrd Mat Mat Mat Machines Accessed 5 | . 4 1 . Terminals 5 | . 4 1 . Fabricators . | . . . . Repair Stations . | . . . . Recycling Units . | . . . . Scanalyzers . | . . . . Garrison Access . | . . . . Total Hacks 14 | . 10 4 . Successful 10 | . 8 2 . Failed 4 | . 2 2 . Catastrophic 2 | . 1 1 . Database Lockouts . | . . . . Manual . | . . . . Terminals 14 | . 10 4 . Fabricators . | . . . . Repair Stations . | . . . . Recycling Units . | . . . . Scanalyzers . | . . . . Garrison Access . | . . . . Terminal Hacks 10 | . 8 2 . Record 1 | . 1 . . Branch Access Points 1 | . 1 . . Unreport Threat 1 | . . 1 . Locate Traps 1 | . 1 . . Disarm Traps 1 | . 1 . . Hauler Manifests 2 | . 2 . . Registered Components 2 | . 1 1 . Zone Layout 1 | . 1 . . Fabricator Hacks . | . . . . Repair Station Hacks . | . . . . Recycling Unit Hacks . | . . . . Scanalyzer . | . . . . Garrison Access Hacks . | . . . . Unauthorized Hacks . | . . . . Terminals . | . . . . Fabricators . | . . . . Repair Stations . | . . . . Recycling Units . | . . . . Scanalyzers . | . . . . Garrison Access . | . . . . Data Cores Recovered . | . . . . Used . | . . . . Hacking Detections 5 | . 4 1 . Full Trace Events 1 | . . 1 . Feedback Events . | . . . . Feedback Blocked . | . . . . Robot Schematics Acquired . | . . . . Robots Built . | . . . . Authchips . | . . . . Time . | . . . . Total Robot Build Rating . | . . . . Part Schematics Acquired . | . . . . Parts Built . | . . . . Authchips . | . . . . Time . | . . . . Total Part Build Rating . | . . . . Parts Repaired . | . . . . Time . | . . . . Parts Recycled . | . . . . Recycled Matter . | . . . . Retrieved Matter . | . . . . Retrieved Components . | . . . . Parts Scanalyzed . | . . . . Part Schematics Acquired . | . . . . Parts Damaged . | . . . . Bothacking | -11 -10 -9 -8 ------------ Run | Yrd Mat Mat Mat Used RIF Installer . | . . . . Robots Hacked . | . . . . Non-combat . | . . . . Combat . | . . . . Robot Hacks Applied . | . . . . Relay Couplers Released . | . . . . Fabnet Peak Effective % . | . . . . Robots Rewired . | . . . . Allies Hacked . | . . . . Hacks Repelled . | . . . . Allies | -11 -10 -9 -8 -------- Run | Yrd Mat Mat Mat Total Allies . | . . . . Largest Group . | . . . . Highest-Rated Group . | . . . . Highest-Rated Ally . | . . . . Total Orders . | . . . . Ally Attacks . | . . . . Total Damage . | . . . . Kills . | . . . . Allies Corrupted . | . . . . Allies Melted . | . . . . Intel | -11 -10 -9 -8 ------- Run | Yrd Mat Mat Mat Robot Analysis Total . | . . . . Derelict Logs Recovered . | . . . . Drone Launches . | . . . . Drone Recoveries . | . . . . Exploration | -11 -10 -9 -8 ------------- Run | Yrd Mat Mat Mat Turns Passed 1227 | 55 504 415 253 Spaces Moved 888 | 40 460 275 113 Core 8 | 3 . . 5 Treads 4 | 4 . . . Legs . | . . . . Wheels 876 | 33 460 275 108 Hover . | . . . . Flight . | . . . . Fastest Speed 50 | 50 90 86 93 Average Speed 94 | 99 90 92 113 Slowest Speed 350 | 160 105 115 350 Overloaded Moves . | . . . . Propulsion Burnouts . | . . . . Robots Hopped . | . . . . Cave-ins Triggered . | . . . . Exploration Rate (%) 28 | 3 57 32 20 Regions Visited 3 Branch Regions . Pre-discovered Areas . | . . . . Known Exits Taken 1 | . . 1 . Unknown Exits Taken 2 | 1 1 . . Scrap Searched . | . . . . Spaces Dug 7 | . . 7 . Terrain Destroyed 84 | . 17 26 41 Melee . | . . . . Projectile 1 | . . . 1 AOE 83 | . 17 26 40 Terrain Rammed . | . . . . Walls Destroyed . | . . . . Machines Disabled . | . . . . Actions | -11 -10 -9 -8 --------- Run | Yrd Mat Mat Mat Total 1118 | 51 524 373 170 Wait 67 | . 25 38 4 Move 885 | 39 459 274 113 Hop . | . . . . Pick Up 17 | 1 9 6 1 Fast Attach 21 | 8 4 3 6 Attach 10 | . 1 6 3 Detach 7 | 2 4 . 1 Swap 6 | 1 3 2 . Drop 9 | . 4 5 . Fire 91 | . 12 37 42 Melee . | . . . . Ram 5 | . 3 2 . Kick . | . . . . Crush . | . . . . Escape Stasis . | . . . . Rewire . | . . . . Trap . | . . . . Miscellaneous . | . . . . Route ------- -11/Scrapyard -10/Materials (discovered 3 exits: *Mat / *Min x2) -9/Materials (discovered 2 exits: *Mat / [*Min]) -8/Materials History --------- Turn | Location | Event 2 | -11/Scrapyard | Met Revision 17 15 | -11/Scrapyard | Discovered new exit (range 15) 56 | -11/Scrapyard | Entered Materials 142 | -10/Materials | Discovered new exit (range 17) 252 | -10/Materials | Identified exit to Mines 301 | -10/Materials | Build established: Mutant 467 | -10/Materials | Discovered new exit (range 13) 560 | -10/Materials | Entered another Materials area 560 | -9/Materials | Evolved 2 slots: Propulsion x1, Utility x1 562 | -9/Materials | Discovered new exit (range 7) 857 | -9/Materials | Core integrity fell below 50% 882 | -9/Materials | Destroyed 7 combat bots 886 | -9/Materials | Lost 8 parts (1p2n5w) 925 | -9/Materials | Discovered new exit (range 18) 974 | -9/Materials | Identified exit to Materials 975 | -9/Materials | Entered another Materials area 975 | -8/Materials | Evolved 2 slots: Power x1, Utility x1 1135 | -8/Materials | Lost 4 parts (2p1n1w) 1185 | -8/Materials | Core integrity fell below 50% 1201 | -8/Materials | Core integrity fell below 20% 1217 | -8/Materials | Lost 6 parts (1p3n2w) 1228 | -8/Materials | Destroyed by G-47 Trooper with Particle Gun Last Messages --------------- A-02 Transporter destroyed. U-05 Engineer destroyed. K-01 Serf collects debris. Destroyed Lgt. Ion Engine. Penetrated by Slug. R-06 Scavenger destroyed. Penetrated by Slug. H-55 Commando destroyed. Acquired 34 matter. U-05 Engineer builds a Wall. The unstable cave ceiling collapses. U-05 Engineer lays Concrete. Acquired Lgt. Treads. U-05 Engineer lays Concrete. U-05 Engineer destroyed. G-47 Trooper destroyed. Electrolysis Chamber disabled. The unstable cave ceiling collapses. Mni. Grenade Launcher destroyed. Critical hit (Burn: +37). Map ----- +----------------------------------------------------+ | ?????????????????????????????????????????????????? | | ???#?????????????????????????????????????????????? | | ?? ##????????????????????????????????????????????? | | # ##???????????????????????????????????????????? | | +???????????????????????????????????????????? | | #????????????????????????????????????????????? | | #?????????#######?+#?????????????????????????? | | #?????????# # #?????????????????????????? | | " #?????????# # #????? #??????????????????? | | "" #?????????# # ###### ?##????????????????? | | "" #?????????# # #????????????????? | | "" +?????????# #????????????????? | | " #?????????# * #????????????????? | | #?????????# "" #????????????????? | | #?????????# g""g #????????????????? | | #?????????# " #????????????????? | | #?????????? % #????????????????? | | #??????????? #????????????????? | | #???????????? = % #??? ????????????? | | ############### # !% # ?????????? | | % % + ?????????? | | ! % #????????????????? | | | % % #????????????????? | | ##???????????????? | | ! [ #???????????????? | | ##+################ @ ! #???????????????? | | #??????????## # [! = #??????????????? | | """"" #???????????# !! #??????????????? | | """"" #????????? ! #??????????????? | | """"" #???????"""" !! % #??????????????? | | """"" #??????""""" # # #??????????????? | | """"" #??????""""" # g ?????????????? | | """"" #??????? + m ???????????? | | """"" #??????""""" # "" ??????????? | | #??????""""" # """ #######+?????????? | | ########??????""""" # """ #????????????????? | | ????????????????? # #????????????????? | | ????????????????###### #????????????????? | | ?????????????????????# ""? #????????????????? | | ?????????????????????# ""?? #????????????????? | | ?????????????????????# ""?? #????????????????? | | ????????????????????? ???? #????????????????? | | ????????????????????? ?????#????????????????? | | ????????????????????? "??????????????????????? | | ?????????????????????? ???????????????????????? | | ?????????????????????????????????????????????????? | | ?????????????????????????????????????????????????? | | ?????????????????????????????????????????????????? | | ?????????????????????????????????????????????????? | | ?????????????????????????????????????????????????? | +----------------------------------------------------+ Best States ------------- Heat Dissipation 31 Energy Generation 19 Energy Capacity 390 Matter Stores 293 Matter Capacity 300 Sight Range 20 Terrain Scan Density 10 ECM Strength 1 Evasion (%) 44 Recoil Reduction 1 Item Schematics ----------------- None Robot Schematics ------------------ None Fabricated ------------ Nothing Alien Tech Used ----------------- None Achievements -------------- None Challenges ------------ None Game ------ Seed ThermoelectricShockClaw Manual? 0 Play Time 00:20:33 Cumulative 21.6 hours Start 2025.03.23 @ 12:45:37 End 2025.03.23 @ 15:59:12 Sessions 3 Manual Loads 0 Difficulty Rogue Special Mode None Game No. 33 Rogue 33 Adventurer 0 Explorer 0 Win Type - Total 0 Types 0/0/0/0/0/0/0/0/0 Lore% 5 Gallery% 23 Achievement% 20 Wizard Run 0 Options --------- Layout 1 ASCII 0 Keyboard 0 Movement Numpad Keybinds 0 Fullscreen 1 Font 48/Smallcaps Map View 50x35 Zoom Use 0% Tactical HUD 0 Map Filters NONE Filters NONE Steam 1 RUN: 0f2103a0-844e-4c5f-a8ab-67d535c82520